[Event "Goteborg Open 2018"]
[Site "Molnlycke kulturhus, Biblioteksgatan 2, Molnlycke, Sweden"]
[Date "2018.08.17"]
[Round "2.2"]
[White "Gritsak, Orest"]
[Black "Bengtsson, Jessica"]
[Result "1-0"]
[TimeControl "15 minutes + 5 seconds per move from move one (Round 1 - 4) / 90 minutes + 30 seconds per move from move one (Round 5 - 8)"]
[WhiteTitle "GM"]
[WhiteFideId "14102188"]
[BlackFideId "1711083"]
[WhiteElo "2464"]
[BlackElo "1978"]

1. Nf3 {[%clk 00:15:02]} {[%emt 00:00:03]} d5 {[%clk 00:15:03]} {[%emt
00:00:03]} 2. d4 {[%clk 00:15:01]} {[%emt 00:00:06]} Nf6 {[%clk 00:15:04]}
{[%emt 00:00:03]} 3. c4 {[%clk 00:15:01]} {[%emt 00:00:05]} e6 {[%clk
00:15:08]} {[%emt 00:00:02]} 4. Nc3 {[%clk 00:15:00]} {[%emt 00:00:06]} Be7
{[%clk 00:15:10]} {[%emt 00:00:03]} 5. Bg5 {[%clk 00:14:49]} {[%emt 00:00:15]}
O-O {[%clk 00:15:08]} {[%emt 00:00:07]} 6. e3 {[%clk 00:14:40]} {[%emt
00:00:14]} h6 {[%clk 00:15:10]} {[%emt 00:00:03]} 7. Bh4 {[%clk 00:14:38]}
{[%emt 00:00:07]} b6 {[%clk 00:15:13]} {[%emt 00:00:03]} 8. Rb1 {[%clk
00:14:01]} {[%emt 00:00:41]} Bb7 {[%clk 00:15:00]} {[%emt 00:00:18]} 9. Bxf6
{[%clk 00:14:02]} {[%emt 00:00:04]} Bxf6 {[%clk 00:15:02]} {[%emt 00:00:04]} 10.
cxd5 {[%clk 00:14:05]} {[%emt 00:00:02]} exd5 {[%clk 00:15:02]} {[%emt
00:00:06]} 11. b4 {[%clk 00:14:07]} {[%emt 00:00:02]} a5 {[%clk 00:11:13]}
{[%emt 00:03:54]} 12. b5 {[%clk 00:13:47]} {[%emt 00:00:25]} Re8 {[%clk
00:09:48]} {[%emt 00:01:30]} 13. Qb3 {[%clk 00:12:17]} {[%emt 00:01:34]} Qd6
{[%clk 00:09:16]} {[%emt 00:00:37]} 14. Be2 {[%clk 00:11:40]} {[%emt 00:00:42]}
Nd7 {[%clk 00:08:59]} {[%emt 00:00:22]} 15. O-O {[%clk 00:11:39]} {[%emt
00:00:06]} Nf8 {[%clk 00:08:14]} {[%emt 00:00:51]} 16. Rfd1 {[%clk 00:10:37]}
{[%emt 00:01:06]} Ne6 {[%clk 00:07:15]} {[%emt 00:01:04]} 17. a4 {[%clk
00:10:30]} {[%emt 00:00:12]} Rad8 {[%clk 00:06:59]} {[%emt 00:00:21]} 18. Rbc1
{[%clk 00:10:26]} {[%emt 00:00:08]} Rb8 {[%clk 00:05:34]} {[%emt 00:01:30]} 19.
g3 {[%clk 00:09:40]} {[%emt 00:00:50]} Red8 {[%clk 00:05:37]} {[%emt 00:00:02]}
20. Bf1 {[%clk 00:09:41]} {[%emt 00:00:04]} c5 {[%clk 00:05:08]} {[%emt
00:00:35]} 21. bxc6 {[%clk 00:09:36]} {[%emt 00:00:10]} Bxc6 {[%clk 00:05:05]}
{[%emt 00:00:08]} 22. Nb5 {[%clk 00:09:07]} {[%emt 00:00:34]} Qd7 {[%clk
00:05:01]} {[%emt 00:00:09]} 23. Rc2 {[%clk 00:09:06]} {[%emt 00:00:06]} Qb7
{[%clk 00:04:11]} {[%emt 00:00:55]} 24. Rdc1 {[%clk 00:09:01]} {[%emt
00:00:10]} Be8 {[%clk 00:03:41]} {[%emt 00:00:34]} 25. h4 {[%clk 00:07:56]}
{[%emt 00:01:10]} Be7 {[%clk 00:03:30]} {[%emt 00:00:16]} 26. Ne5 {[%clk
00:07:33]} {[%emt 00:00:29]} Bb4 {[%clk 00:02:41]} {[%emt 00:00:54]} 27. Bg2
{[%clk 00:07:18]} {[%emt 00:00:19]} f6 {[%clk 00:02:08]} {[%emt 00:00:39]} 28.
Nc6 {[%clk 00:06:39]} {[%emt 00:00:44]} Bxc6 {[%clk 00:02:09]} {[%emt
00:00:04]} 29. Rxc6 {[%clk 00:06:42]} {[%emt 00:00:02]} Qd7 {[%clk 00:02:10]}
{[%emt 00:00:05]} 30. Bxd5 {[%clk 00:06:08]} {[%emt 00:00:39]} Qxd5 {[%clk
00:02:11]} {[%emt 00:00:04]} 31. Qxd5 {[%emt 00:00:01]} Rxd5 {[%emt 00:00:01]}
32. Rxe6 {[%clk 00:06:15]} {[%emt 00:00:02]} Rd7 {[%clk 00:02:08]} {[%emt
00:00:13]} 33. Rcc6 {[%clk 00:06:06]} {[%emt 00:00:13]} Rdb7 {[%clk 00:02:11]}
{[%emt 00:00:03]} 34. h5 {[%clk 00:06:09]} {[%emt 00:00:02]} Kf7 {[%clk
00:02:10]} {[%emt 00:00:05]} 35. g4 {[%clk 00:06:03]} {[%emt 00:00:12]} Be7
{[%clk 00:01:38]} {[%emt 00:00:37]} 36. f4 {[%clk 00:05:58]} {[%emt 00:00:10]}
Kf8 {[%clk 00:01:32]} {[%emt 00:00:12]} 37. Kf2 {[%clk 00:06:00]} {[%emt
00:00:02]} Bd8 {[%clk 00:01:28]} {[%emt 00:00:10]} 38. f5 {[%clk 00:06:00]}
{[%emt 00:00:05]} Re7 {[%clk 00:01:24]} {[%emt 00:00:09]} 39. Red6 {[%clk
00:05:40]} {[%emt 00:00:24]} Ke8 {[%clk 00:01:21]} {[%emt 00:00:08]} 40. Kf3
{[%clk 00:05:41]} {[%emt 00:00:05]} Rd7 {[%clk 00:01:03]} {[%emt 00:00:23]} 41.
Re6+ {[%clk 00:05:45]} {[%emt 00:00:02]} Kf8 {[%clk 00:00:56]} {[%emt
00:00:12]} 42. Ke4 {[%clk 00:05:43]} {[%emt 00:00:06]} Re7 {[%clk 00:00:57]}
{[%emt 00:00:05]} 43. Kd5 {[%clk 00:05:47]} Rxe6 {[%clk 00:00:55]} {[%emt
00:00:08]} 44. Rxe6 {[%clk 00:05:25]} {[%emt 00:00:26]} Rb7 {[%clk 00:00:30]}
{[%emt 00:00:31]} 45. Nd6 {[%clk 00:05:04]} {[%emt 00:00:26]} Re7 {[%clk
00:00:30]} {[%emt 00:00:06]} 46. e4 {[%clk 00:04:24]} {[%emt 00:00:45]} Rxe6
{[%clk 00:00:27]} {[%emt 00:00:08]} 47. fxe6 {[%clk 00:04:15]} {[%emt
00:00:14]} 1-0

[Event "Goteborg Open 2018"]
[Site "Molnlycke kulturhus, Biblioteksgatan 2, Molnlycke, Sweden"]
[Date "2018.08.17"]
[Round "2.3"]
[White "Berg, Roy"]
[Black "Vypkhaniuk, Ihor"]
[Result "0-1"]
[TimeControl "15 minutes + 5 seconds per move from move one (Round 1 - 4) / 90 minutes + 30 seconds per move from move one (Round 5 - 8)"]
[BlackTitle "FM"]
[WhiteFideId "1711458"]
[BlackFideId "14112256"]
[WhiteElo "1957"]
[BlackElo "2357"]

1. d4 {[%clk 00:15:00]} d6 {[%clk 00:15:05]} 2. Nf3 {[%clk 00:15:00]} g6 {[%clk
00:15:05]} 3. g3 {[%clk 00:15:00]} Nf6 {[%clk 00:15:04]} {[%emt 00:58:45]} 4.
Bg2 {[%clk 00:15:07]} Bg7 {[%clk 00:15:07]} {[%emt 00:00:08]} 5. c4 {[%emt
00:00:12]} O-O 6. O-O {[%clk 00:15:09]} {[%emt 00:00:02]} Nbd7 {[%clk
00:15:05]} {[%emt 00:00:07]} 7. Nc3 {[%clk 00:15:04]} {[%emt 00:00:10]} e5
{[%clk 00:15:06]} {[%emt 00:00:04]} 8. e4 {[%clk 00:14:50]} {[%emt 00:00:18]}
a6 {[%clk 00:15:09]} {[%emt 00:00:02]} 9. h3 {[%clk 00:14:31]} {[%emt
00:00:24]} Re8 {[%clk 00:15:11]} {[%emt 00:00:03]} 10. d5 {[%clk 00:14:17]}
{[%emt 00:00:19]} Nc5 {[%clk 00:14:40]} {[%emt 00:00:36]} 11. Ne1 {[%clk
00:14:14]} {[%emt 00:00:08]} a5 {[%clk 00:14:20]} {[%emt 00:00:25]} 12. Nd3
{[%clk 00:13:25]} {[%emt 00:00:53]} Nfd7 {[%clk 00:14:21]} {[%emt 00:00:04]} 13.
b3 {[%clk 00:11:54]} {[%emt 00:01:37]} b6 {[%clk 00:14:11]} {[%emt 00:00:16]}
14. Nxc5 {[%clk 00:11:04]} {[%emt 00:00:55]} Nxc5 {[%clk 00:14:02]} {[%emt
00:00:14]} 15. Qc2 {[%clk 00:10:28]} {[%emt 00:00:40]} Bd7 {[%clk 00:13:55]}
{[%emt 00:00:12]} 16. Be3 {[%clk 00:10:24]} {[%emt 00:00:08]} Qc8 {[%clk
00:13:52]} {[%emt 00:00:09]} 17. Kh2 {[%clk 00:10:25]} {[%emt 00:00:04]} f5
{[%clk 00:13:23]} {[%emt 00:00:34]} 18. Bxc5 {[%clk 00:09:47]} {[%emt
00:00:43]} bxc5 {[%clk 00:13:25]} {[%emt 00:00:03]} 19. Rae1 {[%clk 00:07:18]}
{[%emt 00:02:33]} Qd8 {[%clk 00:13:15]} {[%emt 00:00:15]} 20. f4 {[%clk
00:07:15]} {[%emt 00:00:08]} exf4 {[%clk 00:13:04]} {[%emt 00:00:16]} 21. gxf4
{[%clk 00:07:07]} {[%emt 00:00:12]} Qf6 {[%clk 00:12:42]} {[%emt 00:00:28]} 22.
Nb5 {[%clk 00:06:16]} {[%emt 00:00:57]} Rac8 {[%clk 00:12:03]} {[%emt
00:00:44]} 23. Qd3 {[%clk 00:05:37]} {[%emt 00:00:43]} Kh8 {[%clk 00:11:50]}
{[%emt 00:00:18]} 24. a4 {[%clk 00:05:35]} {[%emt 00:00:07]} Qh4 {[%clk
00:11:32]} {[%emt 00:00:22]} 25. Qg3 {[%clk 00:05:31]} {[%emt 00:00:10]} Qf6
{[%clk 00:10:39]} {[%emt 00:00:58]} 26. Qd3 {[%clk 00:05:26]} {[%emt 00:00:10]}
Kg8 {[%clk 00:10:30]} {[%emt 00:00:14]} 27. Na7 {[%clk 00:05:27]} {[%emt
00:00:04]} Ra8 {[%clk 00:08:42]} {[%emt 00:01:52]} 28. Nb5 {[%clk 00:05:30]}
{[%emt 00:00:03]} fxe4 {[%clk 00:08:42]} {[%emt 00:00:04]} 29. Bxe4 {[%clk
00:04:16]} {[%emt 00:01:19]} Bxb5 {[%clk 00:08:45]} {[%emt 00:00:03]} 30. cxb5
{[%clk 00:04:18]} {[%emt 00:00:03]} Re7 {[%clk 00:08:48]} {[%emt 00:00:01]} 31.
Qf3 {[%clk 00:02:25]} {[%emt 00:01:57]} Rae8 {[%clk 00:08:48]} {[%emt
00:00:05]} 32. Re2 {[%clk 00:02:26]} {[%emt 00:00:05]} Qc3 {[%clk 00:07:46]}
{[%emt 00:01:07]} 33. Qxc3 {[%clk 00:02:20]} {[%emt 00:00:10]} Bxc3 {[%clk
00:07:48]} {[%emt 00:00:03]} 34. Rg2 {[%clk 00:01:36]} {[%emt 00:00:49]} Rxe4
{[%clk 00:07:48]} {[%emt 00:00:05]} 35. f5 {[%clk 00:01:41]} Re2 {[%clk
00:07:40]} {[%emt 00:00:13]} 36. Rff2 {[%clk 00:01:27]} {[%emt 00:00:19]} Be5+
{[%clk 00:07:39]} {[%emt 00:00:05]} 37. Kh1 {[%clk 00:01:25]} {[%emt 00:00:07]}
Re1+ {[%clk 00:07:41]} {[%emt 00:00:04]} 38. Rg1 {[%clk 00:01:29]} {[%emt
00:00:02]} Rxg1+ {[%clk 00:07:43]} {[%emt 00:00:03]} 0-1

[Event "Goteborg Open 2018"]
[Site "Molnlycke kulturhus, Biblioteksgatan 2, Molnlycke, Sweden"]
[Date "2018.08.17"]
[Round "2.4"]
[White "Rydstrom, Tom"]
[Black "Degerfeldt, Sven"]
[Result "1-0"]
[TimeControl "15 minutes + 5 seconds per move from move one (Round 1 - 4) / 90 minutes + 30 seconds per move from move one (Round 5 - 8)"]
[WhiteTitle "FM"]
[WhiteFideId "1714830"]
[BlackFideId "1717430"]
[WhiteElo "2316"]
[BlackElo "1954"]

1. e4 {[%clk 00:15:02]} {[%emt 00:00:02]} c5 {[%clk 00:15:05]} 2. Nf3 {[%clk
00:15:06]} {[%emt 00:00:03]} d6 {[%clk 00:15:09]} 3. d4 {[%clk 00:15:10]} cxd4
{[%clk 00:15:13]} {[%emt 00:00:03]} 4. Nxd4 {[%clk 00:15:14]} Nf6 {[%clk
00:15:17]} {[%emt 00:00:02]} 5. Nc3 {[%clk 00:15:18]} a6 {[%clk 00:15:21]}
{[%emt 00:00:02]} 6. Be2 {[%clk 00:15:14]} {[%emt 00:00:09]} e6 {[%clk
00:15:23]} {[%emt 00:00:04]} 7. Be3 {[%clk 00:15:17]} {[%emt 00:00:02]} Qc7
{[%clk 00:15:26]} {[%emt 00:00:02]} 8. Qd2 {[%clk 00:12:58]} {[%emt 00:02:24]}
b5 {[%clk 00:15:22]} {[%emt 00:00:09]} 9. a3 {[%clk 00:13:02]} {[%emt
00:00:02]} Bb7 {[%clk 00:15:24]} {[%emt 00:00:02]} 10. f3 {[%clk 00:12:21]}
{[%emt 00:00:46]} Nc6 {[%clk 00:15:26]} {[%emt 00:00:03]} 11. g4 {[%clk
00:12:16]} {[%emt 00:00:10]} Be7 {[%clk 00:14:45]} {[%emt 00:00:46]} 12. g5
{[%clk 00:12:19]} {[%emt 00:00:02]} Nd7 {[%clk 00:14:48]} {[%emt 00:00:01]} 13.
h4 {[%clk 00:12:15]} {[%emt 00:00:10]} b4 {[%clk 00:12:02]} {[%emt 00:02:51]}
14. axb4 {[%clk 00:12:18]} {[%emt 00:00:02]} Nxb4 {[%clk 00:12:05]} {[%emt
00:00:02]} 15. O-O-O {[%clk 00:10:25]} {[%emt 00:01:58]} d5 {[%clk 00:11:24]}
{[%emt 00:00:46]} 16. exd5 {[%clk 00:10:25]} {[%emt 00:00:05]} Nxd5 {[%clk
00:11:28]} {[%emt 00:00:01]} 17. Nxd5 {[%clk 00:10:01]} {[%emt 00:00:29]} Bxd5
{[%clk 00:11:31]} 18. Nf5 {[%clk 00:09:36]} {[%emt 00:00:30]} Bf8 {[%clk
00:10:26]} {[%emt 00:01:10]} 19. Kb1 {[%clk 00:09:06]} {[%emt 00:00:35]} g6
{[%clk 00:09:41]} {[%emt 00:00:50]} 20. Bd4 {[%clk 00:07:06]} {[%emt 00:02:04]}
Rg8 {[%clk 00:09:42]} {[%emt 00:00:04]} 21. Ne3 {[%clk 00:07:10]} {[%emt
00:00:01]} Bc6 {[%clk 00:09:09]} {[%emt 00:00:38]} 22. Bc3 {[%clk 00:06:59]}
{[%emt 00:00:16]} Bc5 {[%clk 00:08:10]} {[%emt 00:01:04]} 23. Ng4 {[%clk
00:05:55]} {[%emt 00:01:09]} Bd5 {[%clk 00:07:13]} {[%emt 00:01:02]} 24. Rhe1
{[%clk 00:05:52]} {[%emt 00:00:09]} a5 {[%clk 00:07:08]} {[%emt 00:00:10]} 25.
Bb5 {[%clk 00:05:27]} {[%emt 00:00:29]} Bc6 {[%clk 00:06:51]} {[%emt 00:00:23]}
26. Bxc6 {[%clk 00:05:29]} {[%emt 00:00:03]} Qxc6 {[%clk 00:06:54]} {[%emt
00:00:02]} 27. Qxd7+ {[%clk 00:05:32]} {[%emt 00:00:03]} Qxd7 {[%clk 00:06:53]}
{[%emt 00:00:05]} 28. Nf6+ {[%clk 00:05:36]} {[%emt 00:00:01]} 1-0

[Event "Goteborg Open 2018"]
[Site "Molnlycke kulturhus, Biblioteksgatan 2, Molnlycke, Sweden"]
[Date "2018.08.17"]
[Round "2.5"]
[White "Lundstrom, Mattias"]
[Black "Olsson, William"]
[Result "1-0"]
[TimeControl "15 minutes + 5 seconds per move from move one (Round 1 - 4) / 90 minutes + 30 seconds per move from move one (Round 5 - 8)"]
[WhiteFideId "1703536"]
[BlackFideId "1741721"]
[WhiteElo "2163"]
[BlackElo "1931"]

1. e4 {[%clk 00:15:02]} {[%emt 00:00:02]} c5 {[%clk 00:15:04]} {[%emt
00:00:02]} 2. Nc3 {[%clk 00:15:02]} {[%emt 00:00:05]} Nc6 {[%clk 00:15:03]}
{[%emt 00:00:06]} 3. f4 {[%clk 00:15:04]} {[%emt 00:00:02]} e6 {[%clk
00:15:05]} {[%emt 00:00:03]} 4. Nf3 {[%clk 00:15:07]} {[%emt 00:00:02]} d5
{[%clk 00:15:04]} {[%emt 00:00:05]} 5. exd5 {[%clk 00:15:10]} {[%emt 00:00:02]}
exd5 {[%clk 00:15:07]} {[%emt 00:00:02]} 6. d4 {[%clk 00:15:13]} {[%emt
00:00:01]} Nf6 {[%clk 00:14:57]} {[%emt 00:00:15]} 7. Bb5 {[%clk 00:14:33]}
{[%emt 00:00:45]} Bg4 {[%clk 00:14:22]} {[%emt 00:00:40]} 8. O-O {[%clk
00:14:24]} {[%emt 00:00:14]} Be7 {[%clk 00:14:22]} {[%emt 00:00:05]} 9. h3
{[%clk 00:14:09]} {[%emt 00:00:20]} Bxf3 {[%clk 00:14:19]} {[%emt 00:00:09]} 10.
Rxf3 {[%clk 00:14:07]} {[%emt 00:00:07]} O-O {[%clk 00:14:14]} {[%emt
00:00:10]} 11. dxc5 {[%clk 00:12:47]} {[%emt 00:01:25]} Bxc5+ {[%clk 00:14:07]}
{[%emt 00:00:11]} 12. Kh1 {[%clk 00:12:49]} {[%emt 00:00:03]} d4 {[%clk
00:12:47]} {[%emt 00:01:25]} 13. Rd3 {[%clk 00:11:16]} {[%emt 00:01:38]} Nb4
{[%clk 00:12:23]} {[%emt 00:00:30]} 14. Ne2 {[%clk 00:09:48]} {[%emt 00:01:34]}
Nxd3 {[%clk 00:12:13]} {[%emt 00:00:14]} 15. Qxd3 {[%clk 00:09:50]} {[%emt
00:00:02]} a6 {[%clk 00:11:37]} {[%emt 00:00:42]} 16. Ba4 {[%clk 00:09:37]}
{[%emt 00:00:17]} b5 {[%clk 00:11:38]} {[%emt 00:00:04]} 17. Bb3 {[%clk
00:09:41]} Re8 {[%clk 00:10:42]} {[%emt 00:01:02]} 18. Bd2 {[%clk 00:09:34]}
{[%emt 00:00:12]} Ne4 {[%clk 00:10:32]} {[%emt 00:00:12]} 19. Be1 {[%clk
00:09:01]} {[%emt 00:00:40]} Qf6 {[%clk 00:08:23]} {[%emt 00:02:12]} 20. Bd5
{[%clk 00:08:51]} {[%emt 00:00:18]} Nd6 {[%clk 00:06:16]} {[%emt 00:02:12]} 21.
Bxa8 {[%clk 00:08:27]} {[%emt 00:00:28]} Rxa8 {[%clk 00:06:19]} {[%emt
00:00:02]} 22. Bf2 {[%clk 00:07:29]} {[%emt 00:01:03]} Nf5 {[%clk 00:05:35]}
{[%emt 00:00:49]} 23. c3 {[%clk 00:06:42]} {[%emt 00:00:52]} Rd8 {[%clk
00:05:20]} {[%emt 00:00:20]} 24. Rd1 {[%clk 00:06:42]} {[%emt 00:00:05]} Bb6
{[%clk 00:04:20]} {[%emt 00:01:05]} 25. cxd4 {[%clk 00:06:29]} {[%emt
00:00:18]} h6 {[%clk 00:03:47]} {[%emt 00:00:39]} 26. b3 {[%clk 00:05:41]}
{[%emt 00:00:53]} g5 {[%clk 00:02:57]} {[%emt 00:00:55]} 27. fxg5 {[%clk
00:04:44]} {[%emt 00:01:03]} hxg5 {[%clk 00:03:00]} {[%emt 00:00:01]} 28. Qf3
{[%clk 00:04:03]} {[%emt 00:00:46]} Kg7 {[%clk 00:02:18]} {[%emt 00:00:47]} 29.
d5 {[%clk 00:04:04]} {[%emt 00:00:05]} Bxf2 {[%clk 00:02:11]} {[%emt 00:00:12]}
30. Qxf2 {[%clk 00:04:07]} {[%emt 00:00:02]} Qe5 {[%clk 00:01:16]} {[%emt
00:01:01]} 31. Qf3 {[%clk 00:02:58]} {[%emt 00:01:14]} Rd6 {[%clk 00:00:14]}
{[%emt 00:01:06]} 32. Qc3 {[%clk 00:02:44]} {[%emt 00:00:18]} Kf6 {[%emt
00:00:15]} 1-0

[Event "Goteborg Open 2018"]
[Site "Molnlycke kulturhus, Biblioteksgatan 2, Molnlycke, Sweden"]
[Date "2018.08.17"]
[Round "2.6"]
[White "Maddens, Martijn"]
[Black "Westerlund, Ola"]
[Result "1-0"]
[TimeControl "15 minutes + 5 seconds per move from move one (Round 1 - 4) / 90 minutes + 30 seconds per move from move one (Round 5 - 8)"]
[WhiteTitle "CM"]
[WhiteFideId "206962"]
[BlackFideId "1712101"]
[WhiteElo "2141"]
[BlackElo "1923"]

1. e4 {[%clk 00:15:03]} {[%emt 00:00:01]} d5 {[%clk 00:15:01]} {[%emt
00:00:04]} 2. exd5 {[%clk 00:15:04]} {[%emt 00:00:04]} Qxd5 {[%clk 00:15:05]}
{[%emt 00:00:01]} 3. Nf3 {[%clk 00:15:07]} {[%emt 00:00:02]} Nf6 {[%clk
00:14:14]} {[%emt 00:00:56]} 4. d4 {[%clk 00:15:11]} {[%emt 00:00:01]} Bg4
{[%clk 00:14:14]} {[%emt 00:00:05]} 5. Be2 {[%clk 00:15:15]} {[%emt 00:00:01]}
Nc6 {[%clk 00:14:12]} {[%emt 00:00:07]} 6. Be3 {[%clk 00:14:37]} {[%emt
00:00:43]} e6 {[%clk 00:14:07]} {[%emt 00:00:09]} 7. c4 {[%clk 00:14:38]}
{[%emt 00:00:04]} Qf5 {[%clk 00:12:27]} {[%emt 00:01:45]} 8. Nbd2 {[%clk
00:14:32]} {[%emt 00:00:12]} Nb4 {[%clk 00:05:40]} {[%emt 00:06:52]} 9. O-O
{[%clk 00:12:56]} {[%emt 00:01:40]} Nc2 {[%clk 00:05:09]} {[%emt 00:00:36]} 10.
Rc1 {[%clk 00:12:59]} {[%emt 00:00:02]} Nxe3 {[%clk 00:05:14]} 11. fxe3 {[%clk
00:13:02]} {[%emt 00:00:03]} Qa5 {[%clk 00:03:43]} {[%emt 00:01:35]} 12. a3
{[%clk 00:12:44]} {[%emt 00:00:23]} c6 {[%clk 00:02:24]} {[%emt 00:01:24]} 13.
e4 {[%clk 00:11:12]} {[%emt 00:01:37]} c5 {[%clk 00:01:52]} {[%emt 00:00:36]}
14. e5 {[%clk 00:09:33]} {[%emt 00:01:44]} Nd7 {[%clk 00:01:47]} {[%emt
00:00:10]} 15. d5 {[%clk 00:09:14]} {[%emt 00:00:24]} f5 {[%clk 00:00:44]}
{[%emt 00:01:08]} 16. dxe6 {[%clk 00:08:49]} {[%emt 00:00:30]} Nb6 {[%clk
00:00:48]} {[%emt 00:00:01]} 17. Nb1 {[%clk 00:07:11]} {[%emt 00:01:43]} Rd8
{[%clk 00:00:38]} {[%emt 00:00:15]} 18. Qc2 {[%clk 00:07:13]} {[%emt 00:00:03]}
Qa4 {[%clk 00:00:36]} {[%emt 00:00:08]} 19. b3 {[%clk 00:07:06]} {[%emt
00:00:12]} Qc6 {[%clk 00:00:39]} {[%emt 00:00:01]} 20. h3 {[%clk 00:06:57]}
{[%emt 00:00:13]} Bh5 {[%clk 00:00:17]} {[%emt 00:00:28]} 21. Ng5 {[%clk
00:03:58]} {[%emt 00:03:04]} 1-0

[Event "Goteborg Open 2018"]
[Site "Molnlycke kulturhus, Biblioteksgatan 2, Molnlycke, Sweden"]
[Date "2018.08.17"]
[Round "2.7"]
[White "Bengtsson, Siv"]
[Black "Wellevit, Tomas"]
[Result "0-1"]
[TimeControl "15 minutes + 5 seconds per move from move one (Round 1 - 4) / 90 minutes + 30 seconds per move from move one (Round 5 - 8)"]
[WhiteFideId "1701673"]
[BlackFideId "1731963"]
[WhiteElo "2115"]
[BlackElo "1905"]

1. e4 {[%clk 00:15:00]} {[%emt 00:00:04]} e6 {[%clk 00:14:26]} {[%emt
00:00:40]} 2. d4 {[%clk 00:15:00]} {[%emt 00:00:04]} d5 {[%clk 00:14:30]} 3.
Nd2 {[%clk 00:15:01]} {[%emt 00:00:05]} Nf6 {[%clk 00:14:29]} {[%emt 00:00:07]}
4. e5 {[%clk 00:15:03]} {[%emt 00:00:03]} Nfd7 {[%clk 00:14:33]} 5. Bd3 {[%clk
00:15:05]} {[%emt 00:00:04]} c5 {[%clk 00:14:36]} {[%emt 00:00:03]} 6. c3
{[%clk 00:15:07]} {[%emt 00:00:02]} Nc6 {[%clk 00:14:40]} {[%emt 00:00:02]} 7.
Ne2 {[%clk 00:15:09]} {[%emt 00:00:02]} Qb6 {[%clk 00:14:30]} {[%emt 00:00:16]}
8. Nf3 {[%clk 00:14:45]} {[%emt 00:00:28]} f5 {[%clk 00:13:44]} {[%emt
00:00:51]} 9. exf6 {[%clk 00:13:54]} {[%emt 00:00:56]} Nxf6 {[%clk 00:13:47]}
{[%emt 00:00:02]} 10. O-O {[%clk 00:13:12]} {[%emt 00:00:47]} Bd6 {[%clk
00:13:40]} {[%emt 00:00:12]} 11. dxc5 {[%clk 00:11:21]} {[%emt 00:01:56]} Qxc5
{[%clk 00:12:59]} {[%emt 00:00:45]} 12. Qc2 {[%clk 00:09:12]} {[%emt 00:02:14]}
e5 {[%clk 00:11:32]} {[%emt 00:01:32]} 13. Be3 {[%clk 00:08:05]} {[%emt
00:01:12]} Qa5 {[%clk 00:11:31]} {[%emt 00:00:06]} 14. b4 {[%clk 00:08:03]}
{[%emt 00:00:07]} Qc7 {[%clk 00:11:36]} 15. Bb5 {[%clk 00:07:57]} {[%emt
00:00:12]} Bd7 {[%clk 00:11:34]} {[%emt 00:00:07]} 16. Ng3 {[%clk 00:07:22]}
{[%emt 00:00:39]} O-O {[%clk 00:08:59]} {[%emt 00:02:40]} 17. Bxc6 {[%clk
00:06:40]} {[%emt 00:00:47]} bxc6 {[%clk 00:09:00]} {[%emt 00:00:05]} 18. a3
{[%clk 00:06:04]} {[%emt 00:00:41]} Ng4 {[%clk 00:08:48]} {[%emt 00:00:16]} 19.
Bc5 {[%clk 00:05:01]} {[%emt 00:01:08]} Bxc5 {[%clk 00:08:14]} {[%emt
00:00:40]} 20. bxc5 {[%clk 00:05:04]} {[%emt 00:00:02]} Rf6 {[%clk 00:07:23]}
{[%emt 00:00:56]} 21. c4 {[%clk 00:04:20]} {[%emt 00:00:49]} Raf8 {[%clk
00:06:59]} {[%emt 00:00:29]} 22. h3 {[%clk 00:03:35]} {[%emt 00:00:49]} e4
{[%clk 00:05:12]} {[%emt 00:01:52]} 23. hxg4 {[%emt 00:00:44]} exf3 {[%emt
00:00:03]} 24. gxf3 {[%clk 00:02:34]} {[%emt 00:00:20]} Rxf3 {[%clk 00:05:15]}
{[%emt 00:00:02]} 25. Kg2 {[%clk 00:02:35]} {[%emt 00:00:04]} Bxg4 {[%clk
00:05:13]} {[%emt 00:00:08]} 26. cxd5 {[%clk 00:02:29]} {[%emt 00:00:11]} cxd5
{[%clk 00:04:44]} {[%emt 00:00:34]} 27. c6 {[%clk 00:02:33]} {[%emt 00:00:01]}
h5 {[%clk 00:04:02]} {[%emt 00:00:46]} 28. Qc5 {[%clk 00:01:42]} {[%emt
00:00:56]} Qe5 {[%clk 00:03:43]} {[%emt 00:00:24]} 29. Rae1 {[%clk 00:01:31]}
{[%emt 00:00:16]} Qg5 {[%clk 00:03:28]} {[%emt 00:00:20]} 30. Qd6 {[%clk
00:01:15]} {[%emt 00:00:21]} h4 {[%clk 00:02:41]} {[%emt 00:00:52]} 31. Re5
{[%clk 00:01:19]} {[%emt 00:00:01]} Bh3+ {[%clk 00:02:05]} {[%emt 00:00:41]} 32.
Kxh3 {[%clk 00:01:15]} {[%emt 00:00:09]} Rxg3+ {[%clk 00:02:03]} {[%emt
00:00:07]} 33. Kh2 {[%clk 00:01:07]} {[%emt 00:00:13]} Rxf2+ {[%clk 00:01:57]}
{[%emt 00:00:12]} 34. Rxf2 {[%clk 00:01:08]} {[%emt 00:00:03]} Rh3+ {[%clk
00:02:01]} 35. Kxh3 {[%clk 00:01:10]} {[%emt 00:00:04]} Qg3# 0-1